bitfinex/quotes_BTCUSD_20220304
["timestamp","ask_amount","ask_price","bid_price","bid_amount"]
[1646398157057,0.24180615,41608.0,41605.0,0.06102725]
[1646398157857,0.060134,41608.0,41605.0,0.06102725]
[1646398159261,0.05,41610.0,41605.0,0.06102725]
[1646398159462,0.37058351,41611.0,41605.0,0.06102725]
[1646398160063,0.2171398,41607.0,41605.0,0.06102725]
[1646398162605,0.53190133,41607.0,41605.0,0.06102725]
[1646398162806,1.42388,41606.0,41594.0,0.13104946]
[1646398163008,0.02388,41602.0,41594.0,0.13104946]
[1646398163209,0.417231,41601.0,41594.0,0.13104946]
[1646398163507,0.467231,41601.0,41594.0,0.13104946]
[1646398163707,0.367231,41599.0,41594.0,0.13104946]
[1646398163910,0.25782648,41600.0,41594.0,0.13104946]
[1646398164170,0.060156,41598.0,41594.0,0.13104946]
[1646398165172,0.3,41597.0,41594.0,0.13104946]
[1646398165971,0.367231,41595.0,41594.0,0.13104946]
[1646398166271,0.420302,41597.0,41594.0,0.13104946]
[1646398167072,0.120302,41597.0,41594.0,0.13104946]
[1646398169609,0.060156,41598.0,41594.0,0.13104946]
[1646398172169,0.667231,41597.0,41594.0,0.13104946]
[1646398172566,0.717231,41597.0,41594.0,0.13104946]
[1646398173166,0.765231,41597.0,41594.0,0.13104946]
[1646398175801,0.82538753,41597.0,41594.0,0.13104946]
[1646398176000,0.765231,41597.0,41594.0,0.13104946]
[1646398177202,0.05,41597.0,41594.0,0.13104946]
[1646398177402,0.367231,41595.0,41594.0,0.13104946]
[1646398177603,0.194182,41598.0,41594.0,0.13104946]
[1646398177903,0.487548,41595.0,41594.0,0.13104946]
[1646398178103,0.6358069,41595.0,41594.0,0.13104946]
[1646398178904,1.0030379,41595.0,41594.0,0.13104946]
[1646398180153,0.6358069,41595.0,41594.0,0.13104946]
[1646398180357,0.420317,41595.0,41594.0,0.13104946]
[1646398180553,0.787548,41595.0,41594.0,0.13104946]
[1646398181358,0.98649368,41595.0,41594.0,0.13104946]
[1646398183403,0.787548,41595.0,41594.0,0.13104946]
[1646398184198,0.787548,41595.0,41594.0,0.1309382]
[1646398184798,0.9597679,41595.0,41594.0,0.1309382]
[1646398185201,0.787548,41595.0,41594.0,0.1309382]
[1646398185601,0.420317,41595.0,41594.0,0.1309382]
[1646398185801,0.3,41595.0,41594.0,0.1309382]
[1646398186001,0.060158,41596.0,41594.0,0.1309382]
[1646398186402,0.005,41601.0,41595.0,0.367231]
[1646398186662,0.005,41601.0,41595.0,0.26924834]
[1646398187659,0.34142855,41602.0,41595.0,0.26924834]
[1646398187660,0.64142855,41602.0,41595.0,0.26924834]
[1646398187859,0.34142855,41602.0,41595.0,0.26924834]
[1646398188259,0.060141,41601.0,41595.0,0.26924834]
[1646398188460,0.060141,41601.0,41596.0,0.367231]
[1646398189061,0.060141,41601.0,41595.0,0.26924834]
[1646398189265,0.3,41605.0,41603.0,0.06536421]
[1646398189462,0.367231,41604.0,41603.0,0.06536421]
[1646398189667,0.367231,41611.0,41603.0,0.06536421]
[1646398189865,0.06013,41608.0,41603.0,0.12785421]
[1646398190264,0.06013,41608.0,41603.0,0.40983604]
[1646398190704,0.39899661,41608.0,41603.0,0.40983604]
[1646398190905,0.39899661,41608.0,41603.0,0.12785421]
[1646398191104,0.39899661,41608.0,41603.0,0.06536421]
[1646398191506,0.120264,41608.0,41603.0,0.06536421]
[1646398192204,0.367231,41606.0,41603.0,0.06536421]
[1646398192404,0.367231,41607.0,41603.0,0.06536421]
[1646398193805,0.39858664,41608.0,41603.0,0.06536421]
[1646398193806,0.120264,41608.0,41603.0,0.06536421]
[1646398194661,0.2120791,41606.0,41603.0,0.06536421]
[1646398194859,0.367231,41605.0,41603.0,0.06536421]
[1646398195062,0.3,41604.0,41603.0,0.06536421]
[1646398195261,0.667231,41604.0,41603.0,0.06536421]
[1646398195661,0.95256117,41604.0,41603.0,0.06536421]
[1646398195858,0.89932256,41604.0,41603.0,0.06536421]
[1646398204661,0.89932256,41604.0,41591.0,0.241]
[1646398204662,0.060156,41601.0,41591.0,0.241]
[1646398204861,0.7992677,41600.0,41591.0,0.241]
[1646398205257,0.8492677,41600.0,41591.0,0.01]
[1646398205513,0.23057699,41599.0,41591.0,0.01]
[1646398205712,0.776227,41598.0,41591.0,0.01]
[1646398205912,0.360164,41597.0,41594.0,0.10920461]
[1646398206111,0.367231,41596.0,41594.0,0.10920461]
[1646398206317,0.42739328,41596.0,41594.0,0.10920461]
[1646398206514,0.367231,41596.0,41594.0,0.10920461]
[1646398208213,0.367231,41596.0,41594.0,0.42313088]
[1646398208415,0.65372575,41595.0,41594.0,0.42313088]
[1646398208616,0.367231,41595.0,41594.0,0.42313088]
[1646398208816,0.060164,41597.0,41594.0,0.42313088]
[1646398209019,0.004,41602.0,41595.0,0.367231]
[1646398209268,0.004,41602.0,41597.0,0.057009]
[1646398209466,0.004,41602.0,41600.0,0.367181]
[1646398209666,0.28005381,41607.0,41597.0,0.048]
[1646398209869,0.28005381,41607.0,41594.0,0.30664937]
[1646398209870,0.391111,41598.0,41594.0,0.10920461]
[1646398210068,0.367231,41596.0,41594.0,0.10920461]
[1646398210267,0.715231,41595.0,41594.0,0.10920461]
[1646398210669,1.81119957,41595.0,41594.0,0.10920461]
[1646398210868,2.02697638,41595.0,41594.0,0.10920461]
[1646398211067,2.62757638,41595.0,41594.0,0.10920461]
[1646398211266,2.13636489,41595.0,41594.0,0.10920461]
[1646398212271,2.34502264,41595.0,41594.0,0.10920461]
[1646398212470,2.55865606,41595.0,41594.0,0.10920461]
[1646398212909,3.29285606,41595.0,41594.0,0.10920461]
[1646398213112,3.29285606,41595.0,41591.0,0.01]
[1646398213113,0.7342,41593.0,41591.0,0.01]
[1646398213309,0.765231,41592.0,41591.0,0.01]
[1646398213509,1.4,41591.0,41582.0,0.01]
[1646398213711,1.4,41591.0,41572.0,1.23170595]
[1646398213712,0.07711827,41583.0,41572.0,0.7482]
[1646398213913,0.02388,41581.0,41566.0,0.41944476]
[1646398214112,0.67262463,41579.0,41563.0,0.19744476]
[1646398214314,0.67262463,41579.0,41561.0,0.20744476]
[1646398214315,0.34438887,41572.0,41561.0,0.20744476]
[1646398214514,0.367231,41566.0,41561.0,0.01]
[1646398214713,0.04814636,41562.0,41561.0,0.01]
[1646398215016,0.715231,41562.0,41561.0,0.01]
[1646398215209,0.415231,41562.0,41561.0,0.01]
[1646398215411,1.20120749,41562.0,41561.0,0.01]
[1646398215616,1.63395492,41562.0,41561.0,0.01]
[1646398216212,2.31697395,41562.0,41561.0,0.01]
[1646398216665,0.427462,41555.0,41552.0,0.0111]
[1646398216866,0.367231,41553.0,41552.0,0.0111]
[1646398217066,0.715231,41553.0,41552.0,0.0111]
[1646398217364,0.765231,41553.0,41552.0,0.0111]
[1646398217663,0.765231,41553.0,41538.0,0.19744476]
[1646398217664,0.05575846,41539.0,41538.0,0.19744476]
[1646398217870,0.05575846,41539.0,41531.0,0.4197]
[1646398217871,0.02388,41538.0,41531.0,0.4197]
[1646398218068,0.439111,41537.0,41531.0,0.01]
[1646398218269,0.1,41536.0,41531.0,0.01]
[1646398218565,0.2872228,41533.0,41531.0,0.01]
[1646398218764,0.048,41532.0,41531.0,0.32806672]
[1646398219164,0.15106026,41540.0,41532.0,0.55]
[1646398219366,0.415231,41539.0,41531.0,0.01]
[1646398219965,0.060238,41538.0,41531.0,0.01]
[1646398220166,0.048,41537.0,41531.0,0.01]
[1646398220407,0.367231,41536.0,41534.0,0.31843705]
[1646398220606,0.048,41535.0,41534.0,0.31843705]
[1646398221307,0.23932749,41535.0,41534.0,0.31843705]
[1646398221507,0.048,41535.0,41534.0,0.31843705]
[1646398221907,0.048,41535.0,41531.0,0.01]
[1646398222308,0.048,41535.0,41531.0,0.01009288]
[1646398222309,0.08241903,41532.0,41531.0,0.01009288]
[1646398222510,0.048,41532.0,41531.0,0.01009288]
[1646398223514,0.048,41532.0,41531.0,0.37732388]
[1646398223712,0.048,41532.0,41531.0,0.01009288]
[1646398223911,0.048,41532.0,41531.0,0.37732388]
[1646398224159,0.048,41532.0,41531.0,0.01009288]
[1646398225066,1.53185003,41532.0,41531.0,0.01009288]
[1646398225264,2.10808,41531.0,41522.0,0.178585]
[1646398225466,1.27639304,41532.0,41522.0,0.178585]
[1646398225467,0.367231,41523.0,41522.0,0.178585]
[1646398225666,0.048,41523.0,41522.0,0.178585]
[1646398226168,0.348,41523.0,41522.0,0.178585]
[1646398226365,0.348,41523.0,41504.0,1.053]
[1646398226366,0.367231,41514.0,41504.0,0.4961]
[1646398226568,0.348,41513.0,41501.0,0.01]
[1646398226765,0.048,41512.0,41501.0,0.01]
[1646398227365,0.26791772,41504.0,41502.0,0.28628783]
[1646398227566,0.367231,41503.0,41501.0,0.01]
[1646398227770,0.448,41502.0,41501.0,0.01]
[1646398228022,0.448,41502.0,41492.0,0.011]
[1646398228023,0.367231,41501.0,41492.0,0.011]
[1646398228220,0.18041903,41502.0,41492.0,0.011]
[1646398228221,0.048,41500.0,41492.0,0.011]
[1646398228422,0.048,41499.0,41492.0,0.011]
[1646398228724,0.27091772,41504.0,41492.0,0.011]
[1646398228725,0.003,41504.0,41503.0,0.25]
[1646398228921,0.003,41504.0,41503.0,0.617134]
[1646398229122,0.003,41504.0,41503.0,0.367134]
[1646398229420,0.003,41504.0,41503.0,0.415134]
[1646398229619,0.003,41504.0,41503.0,0.54010085]
[1646398229819,0.05,41515.0,41503.0,0.54010085]
[1646398230020,0.05,41515.0,41503.0,0.29010085]
[1646398230220,0.12055,41525.0,41504.0,0.05]
[1646398230221,0.22055,41525.0,41504.0,0.05]
[1646398230421,0.22055,41525.0,41504.0,0.098]
[1646398230620,0.22055,41525.0,41518.0,0.31317533]
[1646398230822,0.28714082,41519.0,41510.0,0.048]
[1646398231023,0.1,41525.0,41510.0,0.048]
[1646398231233,0.19507289,41529.0,41515.0,0.25]
[1646398231234,0.35347977,41529.0,41515.0,0.25]
[1646398231428,0.15840688,41529.0,41519.0,0.25]
[1646398231666,0.15840688,41529.0,41528.0,0.6006]
[1646398231864,0.19507289,41533.0,41528.0,0.76414897]
[1646398232063,0.19507289,41533.0,41529.0,0.367058]
[1646398232366,0.19507289,41533.0,41531.0,0.057961]
[1646398232565,0.19507289,41533.0,41532.0,0.048]
[1646398232764,0.30390461,41542.0,41532.0,0.048]
[1646398232968,0.17832736,41539.0,41532.0,0.048]
[1646398233265,0.40357701,41543.0,41532.0,0.108233]
[1646398233463,0.24517013,41543.0,41533.0,0.667231]
[1646398233665,0.24517013,41543.0,41534.0,0.048]
[1646398233869,0.0011,41546.0,41534.0,0.048]
[1646398234065,0.17853234,41546.0,41534.0,0.048]
[1646398234264,0.42941819,41546.0,41536.0,0.28408576]
[1646398234468,0.0011,41546.0,41539.0,0.060225]
[1646398234667,0.0011,41546.0,41541.0,0.6006]
[1646398234865,0.0011,41546.0,41542.0,0.415231]
[1646398235065,0.0011,41546.0,41543.0,0.3]
[1646398235266,0.0011,41546.0,41544.0,0.048]
[1646398235518,0.0011,41546.0,41545.0,0.667231]
[1646398235720,0.01,41549.0,41545.0,1.315831]
[1646398235920,2.26460705,41566.0,41548.0,1.0006]
[1646398236116,2.26460705,41566.0,41561.0,0.25]
[1646398236315,2.26460705,41566.0,41564.0,0.36704]
[1646398236518,2.26460705,41566.0,41565.0,0.105568]
[1646398236717,2.26460705,41566.0,41564.0,0.470559]
[1646398236915,2.26460705,41566.0,41565.0,0.41501]
[1646398237117,2.26460705,41566.0,41565.0,0.048]
[1646398237118,0.0011,41566.0,41565.0,0.048]
[1646398237318,0.0011,41566.0,41564.0,0.10354]
[1646398237519,0.56651593,41565.0,41564.0,0.10354]
[1646398237718,0.56651593,41565.0,41554.0,0.060204]
[1646398237719,0.22303693,41565.0,41554.0,0.060204]
[1646398237923,0.22303693,41565.0,41555.0,0.048]
[1646398237924,0.62616348,41562.0,41555.0,0.048]
[1646398238617,0.21254711,41557.0,41555.0,0.048]
[1646398238817,0.61060866,41556.0,41550.0,0.004]
[1646398239023,0.3,41555.0,41550.0,0.004]
[1646398239261,0.367359,41554.0,41550.0,0.004]
[1646398239661,0.391239,41554.0,41550.0,0.004]
[1646398239866,0.02388,41554.0,41542.0,0.30829481]
[1646398240062,0.75808,41552.0,41539.0,0.060228]
[1646398240264,0.75808,41552.0,41532.0,0.120465]
[1646398240265,0.02388,41550.0,41532.0,0.120465]
[1646398240464,0.120471,41549.0,41546.0,0.003]
[1646398240662,0.3,41548.0,41546.0,0.003]
[1646398240861,0.1743116,41547.0,41546.0,0.003]
[1646398241062,0.42869597,41547.0,41546.0,0.003]
[1646398241263,0.25438437,41547.0,41546.0,0.003]
[1646398241567,0.31462037,41547.0,41546.0,0.003]
[1646398241864,0.33850037,41547.0,41538.0,0.31511641]
[1646398242063,0.33850037,41547.0,41539.0,0.05]
[1646398243911,0.060219,41556.0,41541.0,0.060219]
[1646398244116,0.05,41558.0,41544.0,0.367221]
[1646398244310,0.3,41562.0,41548.0,0.25]
[1646398244509,0.3,41562.0,41544.0,0.25]
[1646398244912,0.30216701,41549.0,41545.0,0.05]
[1646398245113,0.727592,41548.0,41545.0,0.05]
[1646398245308,0.727592,41548.0,41536.0,0.003]
[1646398245309,0.428413,41548.0,41536.0,0.003]
[1646398245508,0.2152575,41543.0,41536.0,0.003]
[1646398245708,0.0443,41545.0,41527.0,0.17264858]
[1646398245909,0.26448383,41540.0,41533.0,0.26201103]
[1646398246111,0.3,41539.0,41527.0,0.25]
[1646398246309,0.3,41539.0,41530.0,0.060239]
[1646398246310,0.3443,41539.0,41530.0,0.060239]
[1646398246509,0.0443,41539.0,41530.0,0.060239]
[1646398246961,0.0443,41539.0,41530.0,0.34404186]
[1646398247356,0.0443,41539.0,41530.0,0.39404186]
[1646398247956,0.20433693,41538.0,41530.0,0.39404186]
[1646398248163,0.20433693,41538.0,41523.0,0.25]
[1646398248164,0.28619714,41532.0,41523.0,0.25]
[1646398248360,0.435539,41531.0,41522.0,0.01]
[1646398248559,0.435539,41531.0,41524.0,0.002]
[1646398248760,0.367359,41529.0,41524.0,0.002]
[1646398248957,0.0443,41528.0,41524.0,0.002]
[1646398249156,0.3731694,41528.0,41524.0,0.002]
[1646398249361,4.955e-05,41523.0,41522.0,0.01]
[1646398249558,0.25651261,41525.0,41524.0,0.23933928]
[1646398249559,0.3005728,41525.0,41524.0,0.23933928]
[1646398249759,0.0943,41525.0,41524.0,0.23933928]
[1646398249957,0.0443,41525.0,41524.0,0.23933928]
[1646398250416,0.0393,41525.0,41524.0,0.28933928]
[1646398253226,0.0393,41525.0,41524.0,0.65669828]
[1646398254285,0.05,41530.0,41524.0,0.65669828]
[1646398254486,0.052,41530.0,41524.0,0.28933928]
[1646398254688,0.002,41530.0,41524.0,0.28933928]
[1646398254896,0.002,41530.0,41526.0,0.25]
[1646398255090,0.002,41530.0,41527.0,0.367359]
[1646398255289,0.002,41530.0,41527.0,0.417359]
[1646398255692,0.002,41530.0,41528.0,0.667359]
[1646398255891,0.06023,41545.0,41539.0,0.30761587]
[1646398256093,0.06023,41545.0,41533.0,0.060229]
[1646398256094,0.06023,41545.0,41534.0,0.3]
[1646398256290,0.06023,41545.0,41533.0,0.060229]
[1646398256590,0.18278948,41544.0,41533.0,0.060229]
[1646398256791,0.06023,41545.0,41533.0,0.060229]
[1646398256990,0.28603819,41543.0,41533.0,0.060229]
[1646398257196,0.060239,41541.0,41532.0,0.170458]
[1646398257393,0.06708727,41536.0,41532.0,0.170458]
[1646398257592,0.367359,41540.0,41532.0,0.170458]
[1646398257593,0.367359,41535.0,41532.0,0.170458]
[1646398257792,0.367359,41535.0,41532.0,0.05]
[1646398258027,0.4057357,41534.0,41532.0,0.05]
[1646398258227,0.467359,41533.0,41528.0,0.17049]
[1646398258425,0.15,41533.0,41528.0,0.17049]
[1646398259524,0.05,41533.0,41528.0,0.18537506]
[1646398259730,0.1,41533.0,41529.0,0.23786189]
[1646398259927,0.05,41534.0,41529.0,0.23786189]
[1646398260328,0.15,41536.0,41529.0,0.23786189]
[1646398260727,0.05,41536.0,41529.0,0.23786189]
[1646398260931,0.002,41540.0,41529.0,0.23786189]
[1646398260932,0.24442217,41539.0,41530.0,0.420481]
[1646398261128,0.002,41540.0,41530.0,0.420481]
[1646398261129,0.002,41540.0,41538.0,0.25688774]
[1646398261328,0.120465,41547.0,41539.0,0.05]
[1646398261527,0.08241903,41543.0,41539.0,0.05]
[1646398261758,0.08241903,41540.0,41539.0,0.05]
[1646398262158,0.060232,41543.0,41539.0,0.05]
[1646398262363,0.22005956,41552.0,41539.0,0.05]
[1646398262560,0.004,41544.0,41541.0,0.120461]
[1646398262760,0.10009156,41542.0,41541.0,0.120461]
[1646398262960,0.004,41544.0,41541.0,0.170461]
[1646398263866,0.02388,41553.0,41541.0,0.170461]
[1646398264260,0.28822848,41545.0,41541.0,0.170461]
[1646398264564,0.367359,41544.0,41541.0,0.170461]
[1646398265422,0.16662567,41547.0,41541.0,0.170461]
[1646398265624,0.367359,41546.0,41541.0,0.170461]
[1646398265822,0.417359,41546.0,41541.0,0.170461]
[1646398266222,0.2398516,41544.0,41541.0,0.170461]
[1646398266420,0.06023,41544.0,41541.0,0.170461]
[1646398267625,0.367359,41543.0,41541.0,0.170461]
[1646398267821,0.06023,41544.0,41541.0,0.170461]
[1646398268823,0.004,41546.0,41541.0,0.170461]
[1646398269464,0.79452253,41544.0,41540.0,0.120463]
[1646398269663,0.11613152,41538.0,41536.0,0.060251]
[1646398269860,0.17638393,41538.0,41536.0,0.060251]
[1646398270060,0.22638393,41538.0,41536.0,0.060251]
[1646398270264,0.46655285,41538.0,41536.0,0.060251]
[1646398270458,0.14,41537.0,41536.0,0.060251]
[1646398270658,0.14,41537.0,41535.0,0.36302197]
[1646398270659,0.367359,41537.0,41535.0,0.36302197]
[1646398271257,0.367359,41537.0,41536.0,0.05]
[1646398271859,0.367359,41537.0,41535.0,0.29253297]
[1646398272663,0.367359,41537.0,41535.0,0.05]
[1646398272909,0.060249,41534.0,41533.0,0.060249]
[1646398273109,0.427608,41534.0,41533.0,0.060249]
[1646398273308,0.367359,41534.0,41533.0,0.060249]
[1646398274111,0.120498,41535.0,41533.0,0.060249]
[1646398276308,0.367359,41534.0,41533.0,0.060249]
[1646398277156,0.120498,41535.0,41533.0,0.060249]
[1646398277358,0.170498,41535.0,41533.0,0.060249]
[1646398277957,0.17117787,41535.0,41534.0,0.00015059]
[1646398278161,0.53853687,41535.0,41534.0,0.00015059]
[1646398278358,0.48853687,41535.0,41534.0,0.00015059]
[1646398278960,0.12117787,41535.0,41534.0,0.00015059]
[1646398279361,0.3,41534.0,41529.0,0.23744089]
[1646398279659,0.12117787,41535.0,41530.0,0.013442]
[1646398281330,0.12117787,41535.0,41530.0,0.133935]
[1646398282229,0.120498,41535.0,41530.0,0.133935]
[1646398286275,0.120498,41535.0,41534.0,0.25]
[1646398286479,0.11613152,41538.0,41535.0,0.060225]
[1646398286678,0.11613152,41538.0,41534.0,0.62765812]
[1646398286679,0.11613152,41538.0,41536.0,0.67178421]
[1646398286878,0.11613152,41538.0,41536.0,0.72178421]
[1646398287478,0.17636752,41538.0,41536.0,0.180695]
[1646398287679,0.17636752,41538.0,41537.0,0.05]
[1646398288525,0.54372652,41538.0,41537.0,0.05]
[1646398288728,0.17636752,41538.0,41537.0,0.05]
[1646398295273,0.11613152,41538.0,41537.0,0.05]
[1646398295616,0.11613152,41538.0,41537.0,0.417301]
[1646398296216,0.11613152,41538.0,41537.0,0.72479823]
[1646398298819,0.11613152,41538.0,41537.0,0.417301]
[1646398299768,0.11613152,41538.0,41537.0,0.05]
[1646398299969,0.11613152,41538.0,41534.0,0.05]
[1646398300164,0.22636752,41538.0,41530.0,0.3]
[1646398300365,0.22636752,41538.0,41531.0,0.367356]
[1646398300564,0.22636752,41538.0,41531.0,0.372356]
[1646398300765,0.22636752,41538.0,41532.0,0.25]
[1646398300965,0.16613152,41538.0,41533.0,0.427577]
[1646398301165,0.11613152,41538.0,41533.0,0.47747829]
[1646398301765,0.11613152,41538.0,41536.0,0.24652818]
[1646398302065,0.11613152,41538.0,41537.0,0.367303]
[1646398302909,0.11613152,41538.0,41536.0,0.170463]
[1646398303511,0.11613152,41538.0,41537.0,0.367302]
[1646398305812,0.11613152,41538.0,41537.0,0.38065421]
[1646398306012,0.11613152,41538.0,41537.0,0.01335221]
[1646398306213,0.11613152,41538.0,41536.0,0.170463]
[1646398306867,0.11613152,41538.0,41537.0,0.367301]
[1646398307265,0.11613152,41538.0,41536.0,0.170463]
[1646398307866,0.11613152,41538.0,41537.0,0.367302]
[1646398308468,0.11613152,41538.0,41536.0,0.170463]
[1646398308868,0.11613152,41538.0,41537.0,0.367302]
[1646398309471,0.11613152,41538.0,41537.0,0.159258]
[1646398312521,0.11613152,41538.0,41537.0,0.158858]
[1646398314467,0.11613152,41538.0,41536.0,0.110231]
[1646398314671,0.11613152,41538.0,41537.0,0.158858]
[1646398314868,0.11613152,41538.0,41536.0,0.060231]
[1646398315068,0.11613152,41538.0,41537.0,0.05]
[1646398315468,0.11613152,41538.0,41536.0,0.060231]
[1646398316069,0.11613152,41538.0,41537.0,0.05]
[1646398316471,0.11613152,41538.0,41537.0,0.208857]
[1646398317674,0.11613152,41538.0,41537.0,0.05]
[1646398318117,0.11613152,41538.0,41535.0,0.01214124]
[1646398318317,0.11613152,41538.0,41535.0,0.07237424]
[1646398318516,0.27574514,41537.0,41535.0,0.07237424]
[1646398318716,0.11613152,41538.0,41535.0,0.07237424]
[1646398319518,0.11613152,41538.0,41536.0,0.158863]
[1646398319716,0.11613152,41538.0,41536.0,0.208863]
[1646398319920,0.11613152,41538.0,41536.0,0.05]
[1646398320116,0.11603496,41538.0,41535.0,0.18260524]
[1646398320319,0.060236,41537.0,41535.0,0.07237224]
[1646398321520,0.16603496,41538.0,41535.0,0.18260524]
[1646398321776,0.36155817,41538.0,41535.0,0.18260524]
[1646398322175,0.36155817,41538.0,41536.0,0.158863]
[1646398322176,0.31155817,41538.0,41536.0,0.158863]
[1646398322379,0.11603496,41538.0,41536.0,0.158863]
[1646398322580,0.11603496,41538.0,41533.0,0.44972129]
[1646398322581,0.75,41536.0,41533.0,0.04891024]
[1646398322781,0.75,41536.0,41532.0,0.003]
[1646398322782,0.19569252,41534.0,41532.0,0.003]
[1646398322976,0.667417,41533.0,41532.0,0.003]
[1646398323175,1.02664368,41533.0,41532.0,9.36e-06]
[1646398323376,1.92074132,41533.0,41532.0,9.36e-06]
[1646398323578,0.18346138,41527.0,41522.0,0.01]
[1646398323779,0.01205168,41523.0,41522.0,0.01]
[1646398324178,0.06026352,41526.0,41522.0,0.01]
[1646398324378,0.01205066,41523.0,41522.0,0.01]
[1646398324578,0.01205037,41523.0,41522.0,0.01]
[1646398324776,0.24266595,41523.0,41522.0,0.01]
[1646398324976,0.24266581,41523.0,41522.0,0.01]
[1646398325424,0.76212678,41523.0,41522.0,0.01]
[1646398325623,0.81032678,41523.0,41522.0,0.01]
[1646398325921,0.91032678,41523.0,41522.0,0.01]
[1646398326120,0.74086581,41523.0,41522.0,0.01]
[1646398327120,0.92940141,41523.0,41522.0,0.01]
[1646398327422,0.9294812,41523.0,41522.0,0.01]
[1646398327828,1.42388,41522.0,41509.0,0.19777151]
[1646398328029,1.42388,41522.0,41508.0,0.0011]
[1646398328030,0.14442685,41519.0,41508.0,0.0011]
[1646398328224,0.02388,41517.0,41508.0,0.0011]
[1646398328425,0.415617,41516.0,41508.0,0.0011]
[1646398328624,0.58953208,41515.0,41508.0,0.0011]
[1646398328824,0.439497,41514.0,41508.0,0.0011]
[1646398329023,0.54978569,41514.0,41508.0,0.0011]
[1646398329268,0.417417,41512.0,41508.0,0.0011]
[1646398329467,0.741297,41512.0,41508.0,0.0011]
[1646398329666,0.1,41511.0,41508.0,0.0011]
[1646398329869,0.367417,41510.0,41508.0,0.0011]
[1646398330578,0.391297,41505.0,41496.0,0.003]
[1646398330771,0.367417,41498.0,41496.0,0.003]
[1646398332270,1.15,41495.0,41493.0,0.0021]
[1646398332471,0.767417,41494.0,41493.0,0.0021]
[1646398332669,0.467417,41494.0,41493.0,0.0021]
[1646398332921,0.15,41494.0,41493.0,0.0021]
[1646398333325,0.517417,41494.0,41493.0,0.0011]
[1646398334123,0.15,41494.0,41493.0,0.0011]
[1646398334724,0.05,41494.0,41493.0,0.0011]
[1646398335123,0.004,41498.0,41493.0,0.0011]
[1646398335325,0.0522,41498.0,41494.0,0.060287]
[1646398335524,0.0522,41498.0,41494.0,0.07069801]
[1646398335725,0.004,41498.0,41495.0,0.21294516]
[1646398335925,0.00337184,41498.0,41495.0,0.56222527]
[1646398336224,0.060287,41502.0,41496.0,0.25]
[1646398336424,0.59277086,41512.0,41498.0,0.06028]
[1646398336425,0.15844798,41508.0,41498.0,0.06028]
[1646398336670,0.56726534,41516.0,41500.0,0.25]
[1646398336671,0.15844798,41511.0,41500.0,0.25]
[1646398336868,0.15844798,41512.0,41501.0,0.05]
[1646398337168,0.060277,41509.0,41504.0,0.23113435]
[1646398337567,0.060277,41509.0,41504.0,0.28113435]
[1646398338168,0.060277,41509.0,41506.0,0.21412233]
[1646398338374,0.060277,41509.0,41507.0,0.25]
[1646398338575,0.06027247,41517.0,41508.0,0.29732755]
[1646398338576,0.15844798,41517.0,41508.0,0.29732755]
[1646398338773,0.21426677,41520.0,41508.0,0.05]
[1646398338774,0.15844798,41519.0,41508.0,0.05]
[1646398338970,0.33480077,41520.0,41508.0,0.05]
[1646398339170,0.33480077,41520.0,41507.0,0.13498609]
[1646398339374,0.12884356,41505.0,41504.0,0.24580986]
[1646398339575,0.12884356,41505.0,41504.0,0.36634386]
[1646398339772,0.12884356,41505.0,41504.0,0.6552202]
[1646398340431,0.12884356,41505.0,41504.0,0.84599063]
[1646398341238,0.12884356,41505.0,41504.0,0.55606734]
[1646398341434,0.12884356,41505.0,41504.0,0.18553334]
[1646398342232,0.12884356,41505.0,41504.0,0.06499634]
[1646398342832,0.12884356,41505.0,41502.0,0.060278]
[1646398342833,0.12884356,41505.0,41502.0,0.05]
[1646398343134,0.12884356,41505.0,41500.0,0.006]
[1646398343135,0.17884356,41505.0,41500.0,0.006]
[1646398343536,0.23259539,41501.0,41500.0,0.006]
[1646398343733,0.28131154,41501.0,41500.0,0.006]
[1646398344166,0.28131154,41501.0,41495.0,0.25185893]
[1646398344566,0.24941956,41505.0,41495.0,0.25185893]
[1646398344567,0.24941956,41505.0,41495.0,0.01575893]
[1646398344769,0.1742644,41502.0,41495.0,0.01575893]
[1646398344968,0.1742644,41502.0,41494.0,0.25]
[1646398345267,0.05,41502.0,41497.0,0.060288]
[1646398345467,0.060289,41501.0,41497.0,0.060288]
[1646398345967,0.060289,41501.0,41493.0,0.48502823]
[1646398346369,0.23935586,41498.0,41493.0,0.48502823]
[1646398346769,0.060294,41497.0,41493.0,0.171666]
[1646398346968,0.060294,41497.0,41493.0,0.0511]
[1646398347167,0.060294,41497.0,41493.0,0.0011]
[1646398347368,0.3,41496.0,41493.0,0.0011]
[1646398347771,0.23303269,41495.0,41493.0,0.0011]
[1646398348427,0.35364569,41495.0,41493.0,0.0011]
[1646398348833,0.367417,41494.0,41493.0,0.0011]
[1646398349030,0.120613,41495.0,41493.0,0.0011]
[1646398349832,0.060306,41494.0,41493.0,0.0011]
[1646398350033,0.05,41496.0,41493.0,0.0011]
[1646398350236,7.976e-05,41500.0,41493.0,0.0011]
[1646398350831,7.976e-05,41500.0,41494.0,0.19887367]
[1646398351029,7.976e-05,41500.0,41497.0,0.245948]
[1646398351434,7.976e-05,41500.0,41497.0,0.295948]
[1646398351870,7.976e-05,41500.0,41498.0,0.25]
[1646398352075,9.76e-06,41500.0,41498.0,0.25]
[1646398352571,0.12884356,41505.0,41498.0,0.310278]
[1646398352774,0.12884356,41505.0,41500.0,0.25]
[1646398353371,0.12884356,41505.0,41501.0,0.05]
[1646398353771,0.12884356,41505.0,41501.0,0.25504052]
[1646398354173,0.12884356,41505.0,41502.0,1.4]
[1646398354376,0.12884356,41505.0,41504.0,0.4]
[1646398354574,0.12884356,41505.0,41504.0,0.81244765]
[1646398354774,0.059045,41515.0,41505.0,1.42388]